[Event "CCT Julius Baer-D3 2024"]
[Site "Online"]
[Date "2024.09.28"]
[Round "3"]
[White "Caruana, Fabiano"]
[Black "Bharath Subramaniyam H"]
[Result "1-0"]
[ECO "D51"]
[WhiteElo "2798"]
[BlackElo "2561"]
[Annotator "TA"]
[PlyCount "79"]
[EventDate "2024.09.25"]
[EventType "swiss"]
[EventCountry "NET"]
[SourceTitle "playchess.com"]
[Source "ChessBase"]
[SourceQuality "1"]
[TimeControl "600+2"]

{[%evp 17,79,16,25,23,20,20,27,27,34,22,28,33,32,19,18,22,8,13,60,0,126,128,215,235,224,245,228,227,266,216,195,48,237,241,467,465,495,493,469,487,691,693,670,661,770,793,769,749,1251,1248,1256,1146,2335,2163,1510,915,1031,1031,1031,1040,1064,1020,941,902]} 1. d4 {[%emt 0:00:02]} Nf6 {[%emt 0:00:04]} 2. c4 {[%emt 0:00:01]} e6 {[%emt 0:00:00]} 3. Nc3 {[%emt 0:00:01]} Bb4 {[%emt 0:00:01]} 4. Bg5 {[%emt 0:00:01]} d5 {[%emt 0:00:16]} 5. e3 {[%emt 0:00:04]} O-O {[%emt 0:00:03]} 6. cxd5 {[%emt 0:00:03]} exd5 {[%emt 0:00:02]} 7. Bd3 {[%emt 0:00:01]} c6 {[%emt 0:00:11]} 8. Nge2 {[%emt 0:00:06]} h6 {[%emt 0:00:04]} 9. Bh4 {[%emt 0:00:02]} Nbd7 {[%emt 0:00:23][%cal Bb8d7,Bd7f8,Bf8e6][%mdl 32]} 10. O-O {[%emt 0:00:03]} Re8 {[%emt 0:00:02]} 11. Qc2 {[%emt 0:00:03]} Nf8 {[%emt 0:00:14]} 12. Rae1 {[%emt 0:00:08] White has an edge.} Be7 {[%emt 0:00:20]} 13. f3 {[%emt 0:00:07]} Ne6 {[%emt 0:00:04]} 14. Bf2 {[%emt 0:00:11]} b6 {[%emt 0:00:39]} 15. Kh1 {[%emt 0:00:35]} c5 {[%emt 0:00:12]} 16. dxc5 {[%emt 0:00:26]} bxc5 {[%emt 0:00:00]} 17. Rd1 {[%emt 0:00:02][%cal Oc3d5,Be1d1,Bd1d5,Bd5d7,Bd7a7][%mdl 32]} Qc7 {[%emt 0:01:07]} (17... Qb6 $11 {is superior.}) 18. Bg3 {[%emt 0:01:37]} (18. Nxd5 $1 $14 Nxd5 19. Bh7+ Kh8 20. Rxd5) 18... Qa5 {[%emt 0:01:06] [#]} (18... Qb6 $11 {keeps the balance.}) 19. Bb5 $1 $16 {[%emt 0:00:14] White is more active.} Ba6 {[%emt 0:01:08]} 20. Bxe8 $18 {[%emt 0:00:04]} Rxe8 {[%emt 0:00:00]} 21. Nxd5 {[%emt 0:00:15]} Nxd5 {[%emt 0:00:14]} 22. Rxd5 {[%emt 0:00:00]} Bf6 {[%emt 0:00:29]} 23. Rfd1 {[%emt 0:00:22]} Qxa2 {[%emt 0:00:15][%cal Oa6e2] [#]} 24. Nc3 {[%emt 0:00:10]} (24. R5d2 $1 $18) 24... Qc4 $2 {[%emt 0:00:06] Black cannot hold the game after this.} ({Better is} 24... Bxc3 $1 $14 25. Qxc3 Be2) 25. Be5 {[%emt 0:00:51] Bxf6 is the strong threat.} Bg5 {[%emt 0:00:31]} (25... Bb7) 26. f4 {[%emt 0:00:58][%cal Ob2b3,Bf3f4,Bf4f5][%mdl 32] And now b3! would win. White is clearly winning.} Bh4 {[%emt 0:00:08]} 27. Rd7 {[%emt 0:00:12][%cal Ob2b3] Strongly threatening b3!} Bc8 {[%emt 0:01:56]} 28. Rxa7 {[%emt 0:00:09] Black must now prevent Ra4.} Qb4 {[%emt 0:00:30]} (28... Nd8 $142 29. Ra8 Bg4) 29. Nd5 {[%emt 0:00:10]} Qb5 {[%emt 0:00:03]} 30. f5 {[%emt 0:00:27]} Nf8 {[%emt 0:00:33]} 31. Nc7 {[%emt 0:00:19][%csl LRb5,LRe8]} Qb8 {[%emt 0:00:06]} 32. Nxe8 {[%emt 0:00:02]} Qxe5 {[%emt 0:00:04]} 33. Nd6 {[%emt 0:00:04]} Bd7 {[%emt 0:00:01]} 34. Qc4 {[%emt 0:00:08]} Qf6 {[%emt 0:00:15] [#]} 35. Nxf7 $1 {[%emt 0:00:14]} Qxf7 {[%emt 0:00:03]} 36. Qxf7+ {[%emt 0:00:05]} Kxf7 {[%emt 0:00:01]} 37. Rdxd7+ {[%emt 0:00:01]} Nxd7 {[%emt 0:00:01]} 38. Rxd7+ {[%emt 0:00:00]} Kf6 {[%emt 0:00:02]} 39. Rd5 {[%emt 0:00:01]} Bf2 {[%emt 0:00:01]} 40. e4 {[%emt 0:00:03] Weighted Error Value: White=0.15 (very precise) /Black=0.61.  Loses game:     	---       	Black=1      Mistake:       	White=2     	Black=5      OK:         	White=9     	Black=4      Best:        	White=2     	---        Strong:       	White=1     	---} 1-0

[Event "CCT Julius Baer-D3 2024"]
[Site "Online"]
[Date "2024.09.28"]
[Round "3"]
[White "Yoo, Christopher Woojin"]
[Black "Moussard, Jules"]
[Result "0-1"]
[ECO "D35"]
[WhiteElo "2603"]
[BlackElo "2600"]
[Annotator "TA"]
[PlyCount "78"]
[EventDate "2024.09.25"]
[EventType "swiss"]
[EventCountry "NET"]
[SourceTitle "playchess.com"]
[Source "ChessBase"]
[SourceQuality "1"]
[TimeControl "600+2"]

{[%evp 17,78,13,16,19,18,17,18,19,18,11,7,8,10,7,22,0,0,0,0,0,0,0,0,0,0,0,0,0,13,0,11,0,0,-56,-60,-57,-51,-66,-70,-60,-54,-43,0,0,0,-2,-12,-5,-11,-405,-414,-398,-381,-355,-399,-384,-377,-735,-728,-29990,-29991,-29991,-1040]} 1. d4 {[%emt 0:00:02]} Nf6 {[%emt 0:00:03]} 2. c4 {[%emt 0:00:03]} e6 {[%emt 0:00:02]} 3. Nc3 {[%emt 0:00:05]} d5 {[%emt 0:00:01]} 4. cxd5 {[%emt 0:00:10]} exd5 {[%emt 0:00:01]} 5. Bg5 {[%emt 0:00:01]} c6 {[%emt 0:00:01]} 6. e3 {[%emt 0:00:01]} h6 {[%emt 0:00:01]} 7. Bh4 {[%emt 0:00:04]} Be7 {[%emt 0:00:01]} 8. Bd3 {[%emt 0:00:01]} O-O {[%emt 0:00:01]} 9. Nf3 {[%emt 0:00:17]} Ne4 {[%emt 0:00:14] [#] Threatens to win with ...Nxc3.} 10. Bxe7 {[%emt 0:00:11]} Qxe7 {[%emt 0:00:01]} 11. Qc2 {[%emt 0:00:03]} Re8 {[%emt 0:00:20]} 12. O-O {[%emt 0:00:04] The position is equal.} Bf5 {[%emt 0:00:47]} 13. Bxe4 {[%emt 0:02:28]} Bxe4 {[%emt 0:00:24]} 14. Nxe4 {[%emt 0:00:01]} dxe4 {[%emt 0:00:05]} 15. Ne5 {[%emt 0:00:13][%cal Of2f3]} Nd7 {[%emt 0:00:02]} 16. Nc4 {[%emt 0:00:15]} Nb6 {[%emt 0:01:16]} 17. Rab1 {[%emt 0:00:27]} Rad8 {[%emt 0:00:08]} 18. Nd2 {[%emt 0:01:03]} Nd5 {[%emt 0:00:10]} 19. a3 {[%emt 0:00:09]} h5 {[%emt 0:00:13]} 20. b4 {[%emt 0:00:08]} a6 {[%emt 0:00:04]} 21. Nc4 {[%emt 0:00:09]} Nf6 {[%emt 0:01:18]} 22. a4 {[%emt 0:00:12]} Rd5 {[%emt 0:00:00]} 23. Rfe1 {[%emt 0:02:05]} Rg5 {[%emt 0:00:18]} 24. Kh1 {[%emt 0:00:02]} Qe6 {[%emt 0:01:03]} 25. f4 {[%emt 0:00:10]} (25. h3 $11) 25... exf3 $15 {[%emt 0:01:17]} 26. gxf3 {[%emt 0:00:03]} Nd5 $40 {[%emt 0:00:03][%mdl 128] White needs to defend precisely.} 27. e4 {[%emt 0:01:38][%cal Be3e4,Be4e5][%mdl 32]} Nf4 {[%emt 0:00:56]} 28. Rg1 {[%emt 0:00:03]} Rxg1+ {[%emt 0:00:35]} 29. Rxg1 {[%emt 0:00:00]} Rd8 {[%emt 0:00:02]} 30. Ne3 $1 {[%emt 0:00:12]} g6 {[%emt 0:00:12]} 31. Nf5 {[%emt 0:00:11]} Qf6 {[%emt 0:00:36] ...Kf8 would now be deadly.} 32. e5 $1 {[%emt 0:00:14]} Qe6 {[%emt 0:00:01]} 33. Qe4 $2 {[%emt 0:00:04][%mdl 8192] Against Rd5. This move loses the game for White.} (33. Nd6 $1 $11 {and White has nothing to worry.}) 33... Nh3 $19 {[%emt 0:00:34]} 34. Rg2 {[%emt 0:00:12] Repels Nf2+} Qb3 {[%emt 0:00:01]} 35. Ne3 {[%emt 0:00:06][%cal Og2g6] Against Qd1+} Qxb4 {[%emt 0:00:06] [#] ( -> ...Qe1+)} (35... Qc3 36. Nc2 Qc4 37. Re2 $19) 36. Rxg6+ {[%emt 0:00:05]} Kf8 {[%emt 0:00:02]} (36... fxg6 37. Qxg6+ Kf8 38. Qh6+ Ke7 39. Nf5+ Kd7 40. Kg2 $19) 37. Qh4 {[%emt 0:00:01]} (37. Qf5 Qe1+ (37... Rxd4 38. Qc8+ Ke7 39. Nf5#) (37... Qxd4 $2 38. Qf6 $18) 38. Kg2 Qg1+ (38... Qxe3 $2 39. Kxh3 Qf2 40. e6 $18) 39. Kxh3 Qxg6 40. Qf4) 37... Rxd4 {[%emt 0:00:09]} (37... Qxd4 $2 38. Qf6 Qa1+ 39. Kg2 Qg1+ 40. Kxh3 $18) 38. Qf6 {[%emt 0:00:03]} Qe1+ {[%emt 0:00:02]} (38... Qxa4 $2 39. Qh8+ Ke7 40. Nf5+ Kd7 41. e6+ Kc7 42. Qe5+ Kb6 43. Qxd4+ $18) 39. Kg2 {[%emt 0:00:02]} Nf4+ {[%emt 0:00:02] Weighted Error Value: White=0.67/Black=0.02 (flawless) .  Loses game:     	White=1     	---        Mistake:       	White=2     	---        Inaccurate:     	White=1     	Black=1      OK:         	White=10    	Black=11     Best:        	---       	Black=4      Strong:       	White=2     	---} ({Worse is} 39... Qxe3 40. Qh8+ (40. Kxh3 Qf4 $17) 40... Ke7 41. Qf6+ Kf8 42. Qh8+ (42. Kxh3 Qf4 $17) 42... Ke7 43. Qf6+ Kf8 $11) 0-1

[Event "CCT Julius Baer-D3 2024"]
[Site "Online"]
[Date "2024.09.28"]
[Round "3"]
[White "Moussard, Jules"]
[Black "Yoo, Christopher Woojin"]
[Result "1-0"]
[ECO "C42"]
[WhiteElo "2600"]
[BlackElo "2603"]
[Annotator "TA"]
[PlyCount "89"]
[EventDate "2024.09.25"]
[EventType "swiss"]
[EventCountry "NET"]
[SourceTitle "playchess.com"]
[Source "ChessBase"]
[SourceQuality "1"]
[TimeControl "600+2"]

{[%evp 17,89,31,20,26,28,28,29,22,10,17,14,6,14,13,6,4,2,8,15,12,19,0,0,12,10,3,2,3,3,6,14,14,14,12,39,20,25,10,15,16,35,0,8,0,0,0,0,-12,0,0,33,55,118,88,95,86,324,345,758,720,29967,6125,29978,29979,29979,29980,29980,29981,29981,29982,29982,29983,29983,29984]} 1. e4 {[%emt 0:00:02]} e5 {[%emt 0:00:09]} 2. Nf3 {[%emt 0:00:02]} Nf6 {[%emt 0:00:01]} 3. Nxe5 {[%emt 0:00:04]} d6 {[%emt 0:00:01]} 4. Nf3 {[%emt 0:00:01]} Nxe4 {[%emt 0:00:01]} 5. d4 {[%emt 0:00:01]} d5 {[%emt 0:00:01]} 6. Bd3 {[%emt 0:00:01]} Bd6 {[%emt 0:00:01]} 7. O-O {[%emt 0:00:02]} O-O {[%emt 0:00:01]} 8. c4 {[%emt 0:00:06]} c6 {[%emt 0:00:03]} 9. Re1 {[%emt 0:00:02]} Bf5 {[%emt 0:00:08]} 10. Ng5 {[%emt 0:00:11]} Re8 {[%emt 0:00:47]} 11. Bxe4 $1 {[%emt 0:00:05]} dxe4 {[%emt 0:00:02]} 12. Nc3 {[%emt 0:00:01][%cal Rg5e4] White has an edge.} Nd7 {[%emt 0:00:05]} 13. Ngxe4 {[%emt 0:00:05]} Bxe4 {[%emt 0:00:18]} 14. Nxe4 {[%emt 0:00:10]} Bxh2+ {[%emt 0:00:02]} 15. Kf1 {[%emt 0:00:03] g3 is the strong threat.} (15. Kxh2 $5 Qh4+ $8 16. Kg1 Rxe4 17. Rxe4 Qxe4 18. Be3 $11) 15... Qa5 {[%emt 0:00:30]} 16. Qf3 {[%emt 0:00:57]} f5 {[%emt 0:00:14]} 17. Nc3 {[%emt 0:01:04]} Rxe1+ {[%emt 0:00:04]} 18. Kxe1 {[%emt 0:00:00]} Bc7 {[%emt 0:01:19]} 19. Kf1 {[%emt 0:00:20]} Qb4 {[%emt 0:00:31]} 20. b3 {[%emt 0:00:05]} Qd6 {[%emt 0:00:12] Against Nd5} 21. Ne2 {[%emt 0:01:48][%cal Oc1f4] [#] Black must now prevent Bf4!} Qh2 {[%emt 0:00:12] aiming for ...Qh1+.} 22. Bf4 {[%emt 0:00:18]} (22. Qxf5 Qh1+ 23. Ng1 Bh2 24. Qxd7 Qxg1+ 25. Ke2 Rf8 $17) 22... Bxf4 {[%emt 0:00:03]} 23. Qxf4 {[%emt 0:00:02]} Qxf4 {[%emt 0:00:01]} 24. Nxf4 $11 {[%emt 0:00:00][%mdl 4096] Endgame. KRN-KRN} Re8 {[%emt 0:00:12]} 25. d5 {[%emt 0:00:11]} Nc5 {[%emt 0:02:18]} 26. dxc6 {[%emt 0:00:16]} bxc6 {[%emt 0:00:02]} 27. Rd1 {[%emt 0:00:01]} g5 {[%emt 0:00:05]} 28. Ne2 {[%emt 0:00:35] Black should prevent Rd6.} Kf7 {[%emt 0:01:07]} 29. f3 {[%emt 0:00:23]} Ne6 {[%emt 0:00:24]} 30. Rd6 {[%emt 0:00:45]} Rd8 $1 {[%emt 0:00:04]} (30... c5 31. Rd5 $16) 31. Rxd8 {[%emt 0:00:38]} (31. Rxc6 Rd1+ 32. Kf2 Rd2) 31... Nxd8 {[%emt 0:00:00] KN-KN} 32. Kf2 {[%emt 0:00:06]} Kf6 {[%emt 0:00:02]} 33. Ke3 {[%emt 0:00:03]} f4+ {[%emt 0:00:05]} 34. Ke4 {[%emt 0:00:05]} Ne6 {[%emt 0:00:01]} (34... a5 $14) 35. b4 $16 {[%emt 0:00:03] Strongly threatening Nd4.} h5 {[%emt 0:00:04]} 36. a4 {[%emt 0:00:04][%cal Ba2a4,Ba4a5][%mdl 32] Hoping for a5.} h4 $2 {[%emt 0:00:43] This costs Black the game.} (36... a5 $16 37. bxa5 Nc5+ 38. Kd4 Ne6+ (38... Nb3+ $2 39. Kc3 $18) 39. Kc3 Nc7) 37. a5 $18 {[%emt 0:00:04]} a6 $2 {[%emt 0:01:17]} (37... Ke7 38. Kf5 Kd7) 38. Nd4 {[%emt 0:00:30] Threatens to win with Nxe6.} Nxd4 {[%emt 0:00:06]} 39. Kxd4 {[%emt 0:00:00][%cal Ob4b5] White wants to mate with b5! KP-KP} g4 {[%emt 0:00:00]} 40. fxg4 {[%emt 0:00:01] White mates.} f3 {[%emt 0:00:01]} 41. Ke3 {[%emt 0:00:00]} (41. gxf3 $2 {loses.} h3 42. g5+ Ke7 $19 (42... Kxg5 $2 43. Kc5 $19)) 41... fxg2 {[%emt 0:00:01]} 42. Kf2 {[%emt 0:00:00]} h3 {[%emt 0:00:06] [#]} 43. b5 $1 {[%emt 0:00:01][%mdl 512]} cxb5 {[%emt 0:00:01]} 44. cxb5 {[%emt 0:00:00]} axb5 {[%emt 0:00:02]} 45. a6 {[%emt 0:00:01] Weighted Error Value: White=0.03 (flawless) /Black=0.45.  Loses game:     	---       	Black=1      Mistake:       	---       	Black=2      Inaccurate:     	White=1     	Black=3      OK:         	White=11    	Black=8      Best:        	White=4     	Black=2      Strong:       	White=1     	Black=1} 1-0

[Event "CCT Julius Baer-D3 2024"]
[Site "Online"]
[Date "2024.09.28"]
[Round "3"]
[White "Bharath Subramaniyam H"]
[Black "Caruana, Fabiano"]
[Result "0-1"]
[ECO "B33"]
[WhiteElo "2561"]
[BlackElo "2798"]
[Annotator "TA"]
[PlyCount "126"]
[EventDate "2024.09.25"]
[EventType "swiss"]
[EventCountry "NET"]
[SourceTitle "playchess.com"]
[Source "ChessBase"]
[SourceQuality "1"]
[TimeControl "600+2"]

{[%evp 51,126,0,0,0,0,0,25,-10,-8,-13,29,20,16,28,38,24,30,13,26,17,16,0,0,0,0,-6,12,15,49,56,124,0,0,0,0,0,0,0,0,0,421,415,1136,1116,1114,1074,906,189,900,2489,2383,2347,3540,3370,3370,2345,2300,2281,1119,3727,1659,4674,4710,-29984,-29985,-29985,-29986,-29988,-29989,-29989,-29990,-29992,-29993,-29993,-29994,-29994,-29995]} 1. e4 {[%emt 0:00:03]} c5 {[%emt 0:00:03]} 2. Nf3 {[%emt 0:00:01]} Nc6 {[%emt 0:00:01]} 3. d4 {[%emt 0:00:05]} cxd4 {[%emt 0:00:01]} 4. Nxd4 {[%emt 0:00:00]} Nf6 {[%emt 0:00:01]} 5. Nc3 {[%emt 0:00:00]} e5 {[%emt 0:00:00]} 6. Ndb5 {[%emt 0:00:01]} d6 {[%emt 0:00:01]} 7. Bg5 {[%emt 0:00:01]} a6 {[%emt 0:00:01]} 8. Na3 {[%emt 0:00:00]} b5 {[%emt 0:00:00]} 9. Nab1 {[%emt 0:00:02]} Be7 {[%emt 0:00:02]} 10. Bxf6 {[%emt 0:00:01]} Bxf6 {[%emt 0:00:00]} 11. a4 {[%emt 0:00:00]} b4 {[%emt 0:00:01]} 12. Nd5 {[%emt 0:00:01]} O-O {[%emt 0:00:00]} 13. Bc4 {[%emt 0:00:00]} Bg5 {[%emt 0:00:01]} 14. O-O {[%emt 0:00:01]} Be6 {[%emt 0:00:02]} 15. Qd3 {[%emt 0:00:01]} a5 {[%emt 0:00:03]} 16. c3 {[%emt 0:00:13] B33: Sicilian: Pelikan and Sveshnikov Variations.} Rc8 {[%emt 0:00:01]} 17. b3 {[%emt 0:00:10]} Kh8 {[%emt 0:01:00]} 18. Ba6 $146 {[%emt 0:00:15]} ({Predecessor:} 18. Nd2 bxc3 19. Qxc3 Bxd5 20. exd5 Nd4 21. Rae1 f5 22. Nf3 Nxf3+ 23. Qxf3 Bd2 {0-1 Sherman,R (2366)-Hrbek,S (2402) Pardubice Czech op-A 35th 2024 (9)}) 18... Rb8 {[%emt 0:00:04]} 19. Bb5 {[%emt 0:00:02]} Qc8 {[%emt 0:00:51]} 20. Qc4 {[%emt 0:02:12]} Ne7 {[%emt 0:01:45]} 21. cxb4 {[%emt 0:00:28]} axb4 {[%emt 0:00:15]} 22. Qxc8 {[%emt 0:02:46]} Rfxc8 {[%emt 0:00:03]} 23. Bc4 {[%emt 0:00:01]} Nxd5 {[%emt 0:01:11]} 24. exd5 {[%emt 0:00:01]} Bd7 {[%emt 0:00:01]} 25. Rd1 {[%emt 0:00:33]} Rc5 {[%emt 0:00:11]} 26. Nd2 {[%emt 0:00:11]} f5 {[%emt 0:00:01]} 27. a5 {[%emt 0:00:26]} Ra8 {[%emt 0:00:05]} 28. a6 {[%emt 0:00:02]} Ra7 {[%emt 0:00:38]} 29. Nf3 {[%emt 0:00:39]} Bf6 {[%emt 0:00:23]} 30. Ra2 {[%emt 0:00:22]} e4 {[%emt 0:00:02]} 31. Nd4 {[%emt 0:00:11]} Bxd4 {[%emt 0:02:30]} 32. Rxd4 {[%emt 0:00:00]} Bb5 {[%emt 0:00:05]} 33. Bxb5 {[%emt 0:00:56]} Rxb5 {[%emt 0:00:00]} 34. g4 {[%emt 0:00:03]} g6 {[%emt 0:00:02]} 35. gxf5 {[%emt 0:00:23]} gxf5 {[%emt 0:00:00]} 36. Rc4 {[%emt 0:00:06]} Kg7 $1 {[%emt 0:00:06]} 37. Rc6 {[%emt 0:00:29]} Rxd5 {[%emt 0:00:31]} 38. Rb6 {[%emt 0:00:01]} Kf6 {[%emt 0:00:10]} 39. Kf1 {[%emt 0:00:00]} f4 {[%emt 0:00:12]} 40. Rxb4 {[%emt 0:00:03]} Kf5 {[%emt 0:00:03] [#]} (40... Rd3 $1 $14) 41. Rb7 {[%emt 0:00:06]} (41. f3 $1 $16 {[%cal Rf3e4]} Rd3 42. fxe4+ (42. Rxe4 Rxf3+ 43. Ke2 Rxb3 $11) 42... Kg4 43. Ke2 Re3+ 44. Kd2) 41... f3 $1 $11 {[%emt 0:00:17]} (41... Rxb7 $2 42. axb7 (42. a7 $2 f3 $19) 42... f3 (42... Rb5 $2 43. Ra5 $18) 43. Ke1 $18) 42. Ke1 {[%emt 0:00:02]} (42. Rxa7 $2 Rd1#) 42... Ra8 $1 {[%emt 0:00:01]} (42... Rxb7 $2 43. axb7 Rb5 44. Ra5 Rxa5 45. b8=Q $18 (45. b8=B $2 Ra1+ 46. Kd2 Ra2+ 47. Kc3 e3 $19)) 43. Rxh7 {[%emt 0:00:04]} Rd3 {[%emt 0:00:11]} 44. Ra5+ {[%emt 0:00:08]} d5 {[%emt 0:00:02]} 45. Rh5+ $1 {[%emt 0:00:03]} Ke6 $2 {[%emt 0:00:02][%mdl 8192]} (45... Kg4 $11 {and Black has nothing to worry.} 46. Rh7 (46. Rhxd5 Rxd5 47. Rxd5 Rxa6 $11) 46... Rxb3) 46. a7 $18 {[%emt 0:00:04]} Kd6 {[%emt 0:00:21]} (46... Kf7 $142 47. Ra6 (47. Rhxd5 Rxd5 48. Rxd5 Rxa7 $14) 47... Kg7) 47. b4 $18 {[%emt 0:00:02]} Kc6 {[%emt 0:00:08]} 48. Rh6+ {[%emt 0:00:02]} Kb7 {[%emt 0:00:01]} 49. b5 $2 {[%emt 0:00:06]} (49. Rb5+ Kc7 50. Rh7+ Kc6 51. Rb8 Rxa7 52. Rxa7) 49... d4 $2 {[%emt 0:00:05]} (49... Rb3) 50. Raa6 $18 {[%emt 0:00:06]} Rc3 {[%emt 0:00:04]} 51. Rh7+ {[%emt 0:00:00]} Rc7 {[%emt 0:00:01]} 52. Rxc7+ {[%emt 0:00:05]} Kxc7 {[%emt 0:00:00]} 53. h4 {[%emt 0:00:04]} e3 {[%emt 0:00:02]} 54. h5 {[%emt 0:00:02]} Rg8 {[%emt 0:00:02]} 55. Rg6 {[%emt 0:00:03]} (55. a8=B $2 Rg1#) (55. a8=N+ Kb7 56. Rb6+ Kxa8 $11) 55... Rh8 {[%emt 0:00:05]} 56. h6 {[%emt 0:00:01]} Kb7 {[%emt 0:00:00]} 57. b6 $4 {[%emt 0:00:01][%mdl 8192] [#]} (57. Ra6 $18 Ra8 58. h7) 57... Rc8 $1 {[%emt 0:00:01]} 58. fxe3 {[%emt 0:00:05]} dxe3 {[%emt 0:00:01]} 59. Kd1 {[%emt 0:00:01]} e2+ {[%emt 0:00:01]} 60. Kd2 {[%emt 0:00:02]} Rd8+ {[%emt 0:00:01]} 61. Ke1 {[%emt 0:00:04]} Rd1+ {[%emt 0:00:01]} 62. Kf2 {[%emt 0:00:00]} e1=Q+ {[%emt 0:00:00]} (62... e1=R $2 {too greedy.} 63. Rg7+ (63. Kxf3 Rf1+ 64. Ke4 Rd8 $19) 63... Kxb6 64. a8=Q $18 (64. a8=B Rf1+ 65. Kg3 Rg1+ 66. Kxf3 Rxg7 $11)) 63. Kxf3 {[%emt 0:00:01]} Qf1+ {[%emt 0:00:02]} 0-1